fUSD/lending_fUSD_20250912
["ID","MTS","AMOUNT","RATE_DAILY","PERIOD"]
[384967689,1757635848727,-400.0,0.00027397,7]
[384967690,1757635848736,-3151.29,0.00027397,7]
[384967691,1757635848745,-400.0,0.00027397,7]
[384967692,1757635848755,-2300.55,0.00027397,7]
[384967694,1757635848764,-4629.18,0.00027397,7]
[384967695,1757635848773,-643.67,0.00027397,7]
[384967696,1757635848783,-400.0,0.00027397,7]
[384967697,1757635848792,-400.0,0.00027397,7]
[384967698,1757635848802,-1371.88,0.00027397,7]
[384967699,1757635848811,-1128.67,0.00027397,7]
[384967700,1757635848820,-1236.03,0.00027397,7]
[384967701,1757635848829,-400.0,0.00027397,7]
[384967702,1757635848839,-400.0,0.00027397,7]
[384967703,1757635848848,-400.0,0.00027397,7]
[384967704,1757635848857,-407.94982033,0.00027397,7]
[384967705,1757635848866,-511.57,0.00027397,7]
[384967706,1757635848876,-2330.78,0.00027397,7]
[384967707,1757635848886,-400.0,0.00027397,7]
[384967708,1757635848899,-419.39,0.00027397,7]
[384967709,1757635848908,-863.12,0.00027397,7]
[384967710,1757635848918,-1813.01,0.00027397,7]
[384967711,1757635848927,-632.22,0.00027397,7]
[384967712,1757635848936,-400.0,0.00027397,7]
[384967713,1757635848945,-1128.91,0.00027397,7]
[384967714,1757635848954,-1126.95,0.00027397,7]
[384967715,1757635848964,-730.13,0.00027397,7]
[384967716,1757635848973,-1394.75,0.00027397,7]
[384967717,1757635848983,-500.0,0.00027397,7]
[384967718,1757635848992,-775.19,0.00027397,7]
[384967719,1757635849001,-500.0,0.00027397,7]
[384967720,1757635849010,-1520.76,0.00027397,7]
[384967721,1757635849019,-747.04,0.00027397,7]
[384967722,1757635849029,-476.72,0.00027397,7]
[384967723,1757635849038,-2097.63,0.00027397,7]
[384967724,1757635849048,-1179.87,0.00027397,7]
[384967725,1757635849057,-400.0,0.00027397,7]
[384967726,1757635849066,-1148.46,0.00027397,7]
[384967727,1757635849076,-400.0,0.00027397,7]
[384967728,1757635849085,-400.0,0.00027397,7]
[384967729,1757635849094,-969.67,0.00027397,7]
[384967730,1757635849104,-400.0,0.00027397,7]
[384967731,1757635849113,-4297.11,0.00027397,7]
[384967732,1757635849123,-400.0,0.00027397,7]
[384967733,1757635849132,-400.0,0.00027397,7]
[384967734,1757635849141,-1697.58,0.00027397,7]
[384967735,1757635849150,-1096.77,0.00027397,7]
[384967736,1757635849160,-940.85,0.00027397,7]
[384967737,1757635849170,-400.0,0.00027397,7]
[384967738,1757635849180,-400.0,0.00027397,2]
[384967739,1757635849189,-1245.0,0.00027397,7]
[384967740,1757635849200,-400.0,0.00027397,7]
[384967741,1757635849210,-1284.06,0.00027397,7]
[384967742,1757635849219,-400.0,0.00027397,7]
[384967743,1757635849229,-489.18,0.00027397,7]
[384967744,1757635849238,-821.04,0.00027397,7]
[384967745,1757635849247,-200.0,0.00027397,7]
[384967746,1757635849257,-400.0,0.00027397,7]
[384967747,1757635849267,-1239.76,0.00027397,7]
[384967748,1757635849277,-1028.55,0.00027397,7]
[384967749,1757635849287,-400.0,0.00027397,7]
[384967750,1757635849296,-154.846436,0.00027397,7]
[384967751,1757635849305,-610.44,0.00027397,7]
[384967752,1757635849314,-400.0,0.00027397,7]
[384967753,1757635849325,-400.0,0.00027397,7]
[384967754,1757635849335,-400.0,0.00027397,7]
[384967755,1757635849344,-400.0,0.00027397,7]
[384967756,1757635849354,-1422.7,0.00027397,7]
[384967757,1757635849364,-500.0,0.00027397,10]
[384967758,1757635849374,-400.0,0.00027397,7]
[384967759,1757635849383,-500.0,0.00027397,10]
[384967760,1757635849392,-1177.55,0.00027397,7]
[384967761,1757635849402,-400.0,0.00027397,7]
[384967762,1757635849411,-400.0,0.00027397,7]
[384967763,1757635849421,-500.0,0.00027397,10]
[384967764,1757635849430,-770.51,0.00027397,7]
[384967765,1757635849439,-500.0,0.00027397,10]
[384967766,1757635849450,-569.32,0.00027397,7]
[384967767,1757635849460,-500.0,0.00027397,10]
[384967768,1757635849470,-500.0,0.00027397,10]
[384967769,1757635849479,-500.0,0.00027397,10]
[384967770,1757635849489,-400.0,0.00027397,7]
[384967771,1757635849498,-500.0,0.00027397,10]
[384967772,1757635849508,-400.0,0.00027397,7]
[384967773,1757635849517,-400.0,0.00027397,7]
[384967774,1757635849527,-400.0,0.00027397,7]
[384967775,1757635849537,-569.44,0.00027397,7]
[384967776,1757635849547,-400.0,0.00027397,7]
[384967777,1757635849556,-514.50522885,0.00027397,7]
[384967778,1757635849565,-400.0,0.00027397,7]
[384967779,1757635849574,-752.24,0.00027397,7]
[384967780,1757635849583,-400.0,0.00027397,7]
[384967781,1757635849592,-421.80833439,0.00027397,7]
[384967782,1757635849601,-506.82,0.00027397,7]
[384967783,1757635849611,-400.0,0.00027397,7]
[384967784,1757635849620,-400.0,0.00027397,7]
[384967785,1757635849630,-1273.72,0.00027397,7]
[384967786,1757635849639,-400.0,0.00027397,7]
[384967787,1757635849648,-1014.09,0.00027397,7]
[384967788,1757635849658,-1663.86,0.00027397,7]
[384967789,1757635849667,-1436.52,0.00027397,7]
[384967790,1757635849676,-400.0,0.00027397,7]
[384967791,1757635849685,-1867.34,0.00027397,7]
[384967792,1757635849696,-400.0,0.00027397,7]
[384967793,1757635849705,-400.0,0.00027397,7]
[384967794,1757635849714,-400.0,0.00027397,7]
[384967795,1757635849723,-436.27,0.00027397,7]
[384967796,1757635849732,-300.0,0.00027397,2]
[384967797,1757635849742,-528.54,0.000274,2]
[384967798,1757635849753,-1346.34,0.00027425,30]
[384967799,1757635849762,-347.51686824,0.00027471,2]
[384967800,1757635849772,-181.8641689,0.00027511,2]
[384967801,1757635849781,-2640.08824864,0.00027527,2]
[384967802,1757635849790,-500.0,0.0002757,7]
[384967803,1757635849799,-500.0,0.0002757,7]
[384967804,1757635849808,-643.917,0.00027571,2]
[384967805,1757635849817,-1000.0,0.00027571,2]
[384967806,1757635849826,-10000.0,0.00027571,2]
[384967807,1757635849835,-160.0838558,0.00027571,2]
[384967808,1757635849844,-1225.28,0.00027645,2]
[384967809,1757635849853,-500.0,0.0002766,7]
[384967810,1757635849862,-500.0,0.0002766,7]
[384967811,1757635849872,-500.0,0.0002766,7]
[384967812,1757635849881,-500.0,0.0002766,7]
[384967813,1757635849893,-577.87,0.0002766,7]
[384967814,1757635849903,-1228.0,0.00027661,5]
[384967815,1757635849912,-151.0,0.00027661,7]
[384967816,1757635849921,-229.398993,0.00027661,7]
[384967817,1757635849931,-151.0,0.00027661,7]
[384967818,1757635849941,-500.0,0.0002767,7]
[384967819,1757635849951,-500.0,0.0002767,7]
[384967820,1757635849961,-500.0,0.0002767,7]
[384967821,1757635849971,-500.0,0.0002767,7]
[384967822,1757635849981,-500.0,0.0002767,7]
[384967823,1757635849990,-500.0,0.0002767,7]
[384967824,1757635849999,-500.0,0.0002767,7]
[384967825,1757635850009,-500.0,0.0002767,7]
[384967826,1757635850018,-500.0,0.0002767,7]
[384967827,1757635850027,-500.0,0.0002767,7]
[384967828,1757635850037,-500.0,0.0002767,7]
[384967829,1757635850046,-500.0,0.0002767,7]
[384967830,1757635850056,-150.0,0.0002767,2]
[384967831,1757635850067,-500.0,0.0002767,7]
[384967832,1757635850077,-1187.8,0.0002767,2]
[384967833,1757635850086,-500.0,0.0002767,7]
[384967834,1757635850095,-4387.6772779,0.00027671,2]
[384967835,1757635850104,-400.0,0.00027671,7]
[384967836,1757635850114,-400.0,0.00027671,7]
[384967837,1757635850123,-400.0,0.00027671,7]
[384967838,1757635850133,-400.0,0.00027671,7]
[384967839,1757635850143,-400.0,0.00027671,7]
[384967840,1757635850152,-400.0,0.00027671,7]
[384967841,1757635850162,-400.0,0.00027671,7]
[384967842,1757635850171,-400.0,0.00027671,7]
[384967843,1757635850181,-400.0,0.00027671,7]
[384967844,1757635850191,-400.0,0.00027671,7]
[384967845,1757635850200,-400.0,0.00027671,7]
[384967846,1757635850209,-400.0,0.00027671,7]
[384967847,1757635850218,-400.0,0.00027671,7]
[384967848,1757635850227,-460.48,0.00027671,7]
[384967849,1757635850237,-400.0,0.00027671,7]
[384967850,1757635850246,-465.43,0.00027671,7]
[384967851,1757635850370,-400.0,0.00027671,7]
[384967852,1757635850380,-400.0,0.00027671,7]
[384967853,1757635850390,-400.0,0.00027671,7]
[384967854,1757635850399,-400.0,0.00027671,7]
[384967855,1757635850409,-404.25418217,0.00027671,7]
[384967856,1757635850418,-400.0,0.00027671,7]
[384967857,1757635850427,-534.31,0.00027671,7]
[384967858,1757635850436,-400.0,0.00027671,7]
[384967859,1757635850445,-400.0,0.00027671,7]
[384967860,1757635850455,-750.04,0.00027671,7]
[384967861,1757635850464,-401.66032429,0.00027671,7]
[384967862,1757635850473,-400.0,0.00027671,7]
[384967863,1757635850482,-400.0,0.00027671,7]
[384967864,1757635850491,-400.0,0.00027671,7]
[384967865,1757635850501,-610.83,0.00027671,7]
[384967866,1757635850510,-400.0,0.00027671,7]
[384967867,1757635850519,-400.0,0.00027671,7]
[384967868,1757635850528,-400.0,0.00027671,7]
[384967869,1757635850538,-447.71,0.00027671,7]
[384967870,1757635850547,-400.0,0.00027671,7]
[384967871,1757635850556,-400.0,0.00027671,7]
[384967872,1757635850565,-400.0,0.00027671,7]
[384967873,1757635850575,-400.0,0.00027671,7]
[384967874,1757635850584,-342.47901221,0.00027671,7]
[384967875,1757635850593,-403.15993573,0.00027671,7]
[384967876,1757635850602,-645.85,0.00027671,7]
[384967877,1757635850612,-673.01,0.00027671,7]
[384967878,1757635850621,-400.0,0.00027671,7]
[384967879,1757635850631,-400.0,0.00027671,7]
[384967880,1757635850640,-400.0,0.00027671,2]
[384967881,1757635850649,-400.0,0.00027671,7]
[384967882,1757635850658,-400.0,0.00027671,7]
[384967883,1757635850667,-400.0,0.00027671,7]
[384967884,1757635850676,-400.0,0.00027671,7]
[384967885,1757635850685,-400.0,0.00027671,7]
[384967886,1757635850695,-400.0,0.00027671,7]
[384967887,1757635850705,-563.49,0.00027671,7]
[384967888,1757635850714,-400.0,0.00027671,7]
[384967889,1757635850723,-400.0,0.00027671,7]
[384967890,1757635850733,-400.0,0.00027671,7]
[384967891,1757635850742,-400.0,0.00027671,7]
[384967892,1757635850753,-400.0,0.00027671,7]
[384967893,1757635850762,-400.0,0.00027671,7]
[384967894,1757635850771,-400.0,0.00027671,7]
[384967895,1757635850784,-400.0,0.00027671,7]
[384967896,1757635850794,-400.0,0.00027671,7]
[384967897,1757635850803,-400.0,0.00027671,7]
[384967898,1757635850812,-434.69,0.00027671,7]
[384967899,1757635850822,-400.0,0.00027671,7]
[384967900,1757635850835,-400.0,0.00027671,7]
[384967901,1757635850844,-400.0,0.00027671,7]
[384967902,1757635850854,-400.0,0.00027671,7]
[384967903,1757635850864,-427.83072649,0.00027671,7]
[384967904,1757635850873,-400.0,0.00027671,7]
[384967905,1757635850883,-424.36,0.00027671,7]
[384967906,1757635850896,-679.06,0.00027671,7]
[384967907,1757635850906,-400.0,0.00027671,7]
[384967908,1757635850915,-509.3,0.00027671,7]
[384967909,1757635850925,-598.19,0.00027671,7]
[384967910,1757635850934,-400.0,0.00027671,7]
[384967911,1757635850943,-400.0,0.00027671,7]
[384967912,1757635850952,-400.0,0.00027671,7]
[384967913,1757635850962,-496.19,0.00027671,7]
[384967914,1757635850971,-400.0,0.00027671,7]
[384967915,1757635850981,-400.0,0.00027671,7]
[384967916,1757635850990,-400.0,0.00027671,7]
[384967917,1757635850999,-400.0,0.00027671,7]
[384967918,1757635851008,-400.0,0.00027671,7]
[384967919,1757635851022,-293.53342678,0.00027671,7]
[384967920,1757635851033,-706.85,0.00027671,7]
[384967921,1757635851042,-1125.79,0.00027671,7]
[384967922,1757635851053,-400.0,0.00027671,7]
[384967923,1757635851064,-400.0,0.00027671,7]
[384967924,1757635851074,-400.0,0.00027671,7]
[384967925,1757635851083,-629.37,0.00027671,7]
[384967926,1757635851092,-520.06,0.00027671,7]
[384967927,1757635851101,-400.0,0.00027671,7]
[384967928,1757635851111,-473.97,0.00027671,7]
[384967929,1757635851120,-540.08268543,0.00027671,7]
[384967930,1757635851129,-400.0,0.00027671,7]
[384967931,1757635851139,-400.0,0.00027671,7]
[384967932,1757635851148,-400.0,0.00027671,7]
[384967933,1757635851158,-400.0,0.00027671,7]
[384967934,1757635851168,-400.0,0.00027671,7]
[384967935,1757635851177,-400.0,0.00027671,7]
[384967936,1757635851186,-400.0,0.00027671,7]
[384967937,1757635851195,-400.0,0.00027671,7]
[384967938,1757635851204,-904.11,0.00027671,7]
[384967939,1757635851217,-400.0,0.00027671,7]
[384967940,1757635851227,-400.0,0.00027671,7]
[384967941,1757635851236,-400.0,0.00027671,7]
[384967942,1757635851245,-171.48586897,0.00027671,7]
[384967943,1757635851255,-400.0,0.00027671,7]
[384967944,1757635851265,-545.84,0.00027671,7]
[384967945,1757635851274,-528.79,0.00027671,7]
[384967946,1757635851283,-400.0,0.00027671,7]
[384967947,1757635851293,-400.0,0.00027671,7]
[384967948,1757635851302,-400.0,0.00027671,7]
[384967949,1757635851311,-683.62,0.00027671,7]
[384967950,1757635851320,-456.31,0.00027671,7]
[384967951,1757635851330,-735.1,0.00027671,7]
[384967952,1757635851339,-400.0,0.00027671,7]
[384967953,1757635851348,-400.0,0.00027671,7]
[384967954,1757635851357,-419.82254349,0.00027671,7]
[384967955,1757635851367,-400.0,0.00027671,7]
[384967956,1757635851376,-400.0,0.00027671,7]
[384967957,1757635851385,-400.0,0.00027671,7]
[384967958,1757635851395,-430.04,0.00027671,7]
[384967959,1757635851404,-415.47064197,0.00027671,7]
[384967960,1757635851413,-400.0,0.00027671,7]
[384967961,1757635851422,-867.14,0.00027671,7]
[384967962,1757635851431,-400.0,0.00027671,7]
[384967963,1757635851441,-400.0,0.00027671,7]
[384967964,1757635851450,-400.0,0.00027671,7]
[384967965,1757635851459,-400.0,0.00027671,7]
[384967966,1757635851468,-500.41,0.00027671,7]
[384967967,1757635851478,-400.0,0.00027671,7]
[384967968,1757635851487,-400.0,0.00027671,7]
[384967969,1757635851496,-400.0,0.00027671,7]
[384967970,1757635851505,-400.0,0.00027671,7]
[384967971,1757635851514,-771.55,0.00027671,7]
[384967972,1757635851523,-400.0,0.00027671,7]
[384967973,1757635851532,-420.26,0.00027671,7]
[384967974,1757635851542,-872.56,0.00027671,7]
[384967975,1757635851551,-400.0,0.00027671,7]
[384967976,1757635851560,-695.19,0.00027671,7]
[384967977,1757635851570,-785.03,0.00027671,7]
[384967978,1757635851579,-1230.22,0.00027671,7]
[384967979,1757635851589,-400.0,0.00027671,7]
[384967980,1757635851598,-400.0,0.00027671,7]
[384967981,1757635851607,-400.0,0.00027671,7]
[384967982,1757635851616,-400.0,0.00027671,7]
[384967983,1757635851626,-437.14,0.00027671,7]
[384967984,1757635851635,-400.0,0.00027671,7]
[384967985,1757635851644,-952.72,0.00027671,7]
[384967986,1757635851654,-400.0,0.00027671,7]
[384967987,1757635851664,-400.0,0.00027671,7]
[384967988,1757635851673,-400.0,0.00027671,7]
[384967989,1757635851683,-400.0,0.00027671,7]
[384967990,1757635851692,-400.0,0.00027671,7]
[384967991,1757635851702,-400.0,0.00027671,7]
[384967992,1757635851711,-400.0,0.00027671,7]
[384967993,1757635851721,-400.0,0.00027671,7]
[384967994,1757635851730,-400.0,0.00027671,7]
[384967995,1757635851740,-400.0,0.00027671,7]
[384967996,1757635851749,-151.0,0.00027671,7]
[384967997,1757635851759,-358.66334477,0.00027671,7]
[384967998,1757635851768,-402.59356793,0.00027671,7]
[384967999,1757635851778,-400.0,0.00027671,7]
[384968000,1757635851787,-400.0,0.00027671,7]
[384968001,1757635851796,-875.99,0.00027671,7]
[384968002,1757635851806,-152.923294,0.00027671,7]
[384968003,1757635851815,-400.0,0.00027671,7]
[384968004,1757635851824,-400.0,0.00027671,7]
[384968005,1757635851833,-400.0,0.00027671,7]
[384968006,1757635851842,-400.0,0.00027671,7]
[384968007,1757635851852,-400.0,0.00027671,7]
[384968008,1757635851861,-1339.97,0.00027671,7]
[384968009,1757635851870,-400.0,0.00027671,7]
[384968010,1757635851879,-570.5,0.00027671,7]
[384968011,1757635851890,-400.0,0.00027671,7]
[384968012,1757635851900,-400.0,0.00027671,7]
[384968013,1757635851909,-400.0,0.00027671,7]
[384968014,1757635851919,-400.0,0.00027671,7]
[384968015,1757635851927,-400.0,0.00027671,7]
[384968016,1757635851938,-970.29,0.00027671,7]
[384968017,1757635851947,-907.37,0.00027671,7]
[384968018,1757635851956,-813.46,0.00027671,7]
[384968019,1757635851968,-400.0,0.00027671,7]
[384968020,1757635851978,-991.6,0.00027671,7]
[384968021,1757635851987,-400.0,0.00027671,7]
[384968022,1757635851996,-151.0,0.00027671,7]
[384968023,1757635852005,-853.84,0.00027671,7]
[384968024,1757635852014,-400.0,0.00027671,7]
[384968025,1757635852024,-400.0,0.00027671,7]
[384968026,1757635852035,-1570.17,0.00027671,7]
[384968027,1757635852047,-991.68,0.00027671,7]
[384968028,1757635852057,-487.32,0.00027671,7]
[384968029,1757635852068,-400.0,0.00027671,7]
[384968030,1757635852079,-151.0,0.00027671,7]
[384968031,1757635852089,-400.0,0.00027671,7]
[384968032,1757635852099,-400.0,0.00027671,7]
[384968033,1757635852108,-400.0,0.00027671,7]
[384968034,1757635852118,-400.0,0.00027671,7]
[384968035,1757635852127,-151.0,0.00027671,7]
[384968036,1757635852138,-151.0,0.00027671,7]
[384968037,1757635852147,-522.52,0.00027671,7]
[384968038,1757635852156,-1208.19,0.00027671,7]
[384968039,1757635852165,-400.0,0.00027671,7]
[384968040,1757635852174,-400.0,0.00027671,7]
[384968041,1757635852184,-400.0,0.00027671,7]
[384968042,1757635852193,-400.0,0.00027671,7]
[384968043,1757635852202,-507.42,0.00027671,7]
[384968044,1757635852212,-400.0,0.00027671,7]
[384968045,1757635852221,-909.58,0.00027671,7]
[384968046,1757635852231,-400.0,0.00027671,7]
[384968047,1757635852240,-669.76,0.00027671,7]
[384968048,1757635852250,-1361.42,0.00027671,7]
[384968049,1757635852261,-400.0,0.00027671,7]
[384968050,1757635852270,-463.08,0.00027671,7]
[384968051,1757635852279,-400.0,0.00027671,7]
[384968052,1757635852289,-400.0,0.00027671,7]
[384968053,1757635852298,-400.0,0.00027671,7]
[384968054,1757635852307,-400.0,0.00027671,7]
[384968055,1757635852316,-400.0,0.00027671,7]
[384968056,1757635852326,-400.0,0.00027671,7]
[384968057,1757635852335,-837.75,0.00027671,7]
[384968058,1757635852344,-542.04,0.00027671,7]
[384968059,1757635852353,-421.1,0.00027671,7]
[384968060,1757635852362,-400.0,0.00027671,7]
[384968061,1757635852371,-416.58,0.00027671,7]
[384968062,1757635852380,-977.58,0.00027671,7]
[384968063,1757635852390,-660.02,0.00027671,7]
[384968064,1757635852399,-206.24385247,0.00027671,7]
[384968065,1757635852408,-400.0,0.00027671,7]
[384968066,1757635852418,-525.3972394,0.00027671,7]
[384968067,1757635852427,-400.0,0.00027671,7]
[384968068,1757635852436,-581.07,0.00027671,7]
[384968069,1757635852445,-821.14,0.00027671,7]
[384968070,1757635852751,-400.0,0.00027671,7]
[384968071,1757635852770,-1419.5,0.00027671,7]
[384968072,1757635852780,-1028.95,0.00027671,7]
[384968073,1757635852789,-480.15,0.00027671,7]
[384968074,1757635852799,-400.0,0.00027671,7]
[384968075,1757635852808,-581.35,0.00027671,7]
[384968076,1757635852817,-400.0,0.00027671,7]
[384968077,1757635852826,-400.0,0.00027671,7]
[384968078,1757635852836,-400.0,0.00027671,7]
[384968079,1757635852845,-400.0,0.00027671,7]
[384968080,1757635852855,-400.0,0.00027671,7]
[384968081,1757635852865,-1388.24,0.00027671,7]
[384968082,1757635852874,-151.0,0.00027671,7]
[384968083,1757635852883,-151.0,0.00027671,7]
[384968084,1757635852896,-151.0,0.00027671,7]
[384968085,1757635852905,-525.75,0.00027671,7]
[384968086,1757635852914,-400.0,0.00027671,7]
[384968087,1757635852923,-400.0,0.00027671,7]
[384968088,1757635852933,-916.19,0.00027671,7]
[384968089,1757635852942,-400.0,0.00027671,7]
[384968090,1757635852951,-400.0,0.00027671,7]
[384968091,1757635852960,-400.0,0.00027671,7]
[384968092,1757635852970,-400.0,0.00027671,7]
[384968093,1757635852980,-400.0,0.00027671,7]
[384968094,1757635852990,-151.0,0.00027671,7]
[384968095,1757635852999,-558.83,0.00027671,7]
[384968096,1757635853008,-151.0,0.00027671,7]
[384968097,1757635853017,-1182.48,0.00027671,7]
[384968098,1757635853026,-400.0,0.00027671,7]
[384968099,1757635853036,-1142.66,0.00027671,7]
[384968100,1757635853045,-699.84,0.00027671,7]
[384968101,1757635853054,-275.45381263,0.00027671,7]
[384968102,1757635853063,-400.0,0.00027671,7]
[384968103,1757635853072,-151.0,0.00027671,7]
[384968104,1757635853081,-400.0,0.00027671,7]
[384968105,1757635853090,-296.552253,0.00027671,7]
[384968106,1757635853099,-400.0,0.00027671,7]
[384968107,1757635853109,-477.27,0.00027671,7]
[384968108,1757635853118,-400.0,0.00027671,7]
[384968109,1757635853128,-612.84,0.00027671,7]
[384968110,1757635853137,-402.64636129,0.00027671,7]
[384968111,1757635853147,-400.0,0.00027671,7]
[384968112,1757635853156,-151.0,0.00027671,7]
[384968113,1757635853165,-400.0,0.00027671,7]
[384968114,1757635853175,-151.0,0.00027671,7]
[384968115,1757635853184,-151.0,0.00027671,7]
[384968116,1757635853193,-1252.23,0.00027671,7]
[384968117,1757635853203,-400.0,0.00027671,7]
[384968118,1757635853212,-151.0,0.00027671,7]
[384968119,1757635853222,-1028.16,0.00027671,7]
[384968120,1757635853231,-521.68,0.00027671,7]
[384968121,1757635853240,-400.0,0.00027671,7]
[384968122,1757635853250,-400.0,0.00027671,7]
[384968123,1757635853259,-400.0,0.00027671,7]
[384968124,1757635853268,-400.0,0.00027671,7]
[384968125,1757635853278,-400.0,0.00027671,7]
[384968126,1757635853287,-891.6,0.00027671,7]
[384968127,1757635853296,-757.11,0.00027671,7]
[384968128,1757635853305,-400.0,0.00027671,7]
[384968129,1757635853315,-1154.98,0.00027671,7]
[384968130,1757635853324,-476.62,0.00027671,7]
[384968131,1757635853333,-773.83,0.00027671,7]
[384968132,1757635853342,-400.0,0.00027671,7]
[384968133,1757635853351,-891.39,0.00027671,7]
[384968134,1757635853360,-400.0,0.00027671,7]
[384968135,1757635853370,-1041.69,0.00027671,7]
[384968136,1757635853379,-400.0,0.00027671,7]
[384968137,1757635853389,-400.0,0.00027671,7]
[384968138,1757635853398,-400.0,0.00027671,7]
[384968139,1757635853407,-400.0,0.00027671,7]
[384968140,1757635853416,-1327.26,0.00027671,7]
[384968141,1757635853425,-400.0,0.00027671,7]
[384968142,1757635853434,-400.0,0.00027671,7]
[384968143,1757635853443,-151.0,0.00027671,7]
[384968144,1757635853453,-3402.99,0.00027671,5]
[384968145,1757635853462,-858.67,0.00027671,7]
[384968146,1757635853471,-400.0,0.00027671,7]
[384968147,1757635853480,-400.0,0.00027671,7]
[384968148,1757635853489,-1307.66,0.00027671,7]
[384968149,1757635853499,-831.51,0.00027671,7]
[384968150,1757635853508,-404.66237097,0.00027671,7]
[384968151,1757635853517,-257.0,0.00027671,5]
[384968152,1757635853526,-400.0,0.00027671,7]
[384968153,1757635853536,-151.0,0.00027671,7]
[384968154,1757635853545,-400.0,0.00027671,7]
[384968155,1757635853555,-400.0,0.00027671,7]
[384968156,1757635853564,-400.0,0.00027671,7]
[384968157,1757635853574,-400.0,0.00027671,7]
[384968158,1757635853583,-785.13,0.00027671,7]
[384968159,1757635853592,-400.0,0.00027671,7]
[384968160,1757635853601,-400.0,0.00027671,7]
[384968161,1757635853610,-400.0,0.00027671,7]
[384968162,1757635853619,-400.0,0.00027671,7]
[384968163,1757635853628,-400.0,0.00027671,7]
[384968164,1757635853637,-400.0,0.00027671,7]
[384968165,1757635853647,-1114.2,0.00027671,7]
[384968166,1757635853656,-418.67428083,0.00027671,7]
[384968167,1757635853665,-400.0,0.00027671,7]
[384968168,1757635853675,-400.0,0.00027671,7]
[384968169,1757635853684,-619.64,0.00027671,7]
[384968170,1757635853693,-964.48,0.00027671,7]
[384968171,1757635853702,-400.0,0.00027671,7]
[384968172,1757635853711,-453.21,0.00027671,7]
[384968173,1757635853720,-400.0,0.00027671,7]
[384968174,1757635853729,-447.95,0.00027671,7]
[384968175,1757635853738,-966.38,0.00027671,7]
[384968176,1757635853747,-766.14,0.00027671,7]
[384968177,1757635853757,-400.0,0.00027671,7]
[384968178,1757635853766,-400.0,0.00027671,7]
[384968179,1757635853776,-400.0,0.00027671,7]
[384968180,1757635853785,-400.0,0.00027671,7]
[384968181,1757635853795,-400.0,0.00027671,7]
[384968182,1757635853804,-400.0,0.00027671,7]
[384968183,1757635853813,-400.0,0.00027671,7]
[384968184,1757635853822,-874.04,0.00027671,7]
[384968185,1757635853832,-1081.64,0.00027671,7]
[384968186,1757635853841,-400.0,0.00027671,7]
[384968187,1757635853850,-400.0,0.00027671,7]
[384968188,1757635853859,-400.0,0.00027671,7]
[384968189,1757635853868,-916.1,0.00027671,7]